[Event "Championnat du monde jeunes U10"]
[Date "2024.11.26"]
[White "Mikkelsen, Anders Askjaer"]
[Black "Shrubok, Herman"]
[WhiteElo "1745"]
[BlackElo "1477"]
[Round "11.45"]
[Result "1/2-1/2"]
[TimeControl "5400+30"]

1. e4 {[%clk 1:30:25]} 1... d6 {[%clk 1:29:43]} 2. d4 {[%clk 1:30:03]} 2... Nf6
{[%clk 1:29:08]} 3. Nc3 {[%clk 1:30:04]} 3... e5 {[%clk 1:28:36]} 4. dxe5 {[%clk
1:28:09]} 4... dxe5 {[%clk 1:28:53]} 5. Qxd8+ {[%clk 1:27:31]} 5... Kxd8 {[%clk
1:29:08]} 6. Bg5 {[%clk 1:26:15]} 6... Be6 {[%clk 1:26:51]} 7. O-O-O+ {[%clk
1:24:25]} 7... Kc8 {[%clk 1:25:52]} 8. Nf3 {[%clk 1:19:02]} 8... Nbd7 {[%clk
1:23:54]} 9. Bd3 {[%clk 1:09:58]} 9... c6 {[%clk 1:19:52]} 10. Ne2 {[%clk
1:03:13]} 10... Bc5 {[%clk 1:16:45]} 11. Rhf1 {[%clk 1:03:11]} 11... a5 {[%clk
1:15:07]} 12. a3 {[%clk 1:00:55]} 12... b5 {[%clk 1:10:53]} 13. Nd2 {[%clk
1:00:02]} 13... h6 {[%clk 1:08:52]} 14. Bxf6 {[%clk 0:58:04]} 14... gxf6 {[%clk
1:07:41]} 15. f4 {[%clk 0:57:50]} 15... Nb6 {[%clk 1:04:52]} 16. f5 {[%clk
0:55:31]} 16... Bc4 {[%clk 1:02:48]} 17. Bxc4 {[%clk 0:55:28]} 17... Nxc4 {[%clk
1:03:06]} 18. Nxc4 {[%clk 0:55:41]} 18... bxc4 {[%clk 1:01:36]} 19. Rf3 {[%clk
0:54:23]} 19... Kc7 {[%clk 0:59:28]} 20. Nc3 {[%clk 0:39:18]} 20... Rhg8 {[%clk
0:55:43]} 21. g3 {[%clk 0:38:34]} 21... Rad8 {[%clk 0:54:13]} 22. Nb1 {[%clk
0:36:58]} 22... Rxd1+ {[%clk 0:49:50]} 23. Kxd1 {[%clk 0:37:18]} 23... Bg1
{[%clk 0:49:11]} 24. Ke2 {[%clk 0:36:52]} 24... Rb8 {[%clk 0:47:36]} 25. b3
{[%clk 0:35:58]} 25... cxb3 {[%clk 0:47:57]} 26. Rxb3 {[%clk 0:36:07]} 26... Rd8
{[%clk 0:48:13]} 27. h3 {[%clk 0:34:45]} 27... Rd4 {[%clk 0:45:30]} 28. Nd2
{[%clk 0:32:42]} 28... Ra4 {[%clk 0:44:24]} 29. Kf3 {[%clk 0:29:29]} 29... Bc5
{[%clk 0:41:24]} 30. Nb1 {[%clk 0:28:16]} 30... Rc4 {[%clk 0:40:59]} 31. Rc3
{[%clk 0:24:09]} 31... Rxc3+ {[%clk 0:41:12]} 32. Nxc3 {[%clk 0:24:34]} 32...
Bxa3 {[%clk 0:41:28]} 33. Ke3 {[%clk 0:23:58]} 33... Bb2 {[%clk 0:40:27]} 34.
Na4 {[%clk 0:24:07]} 34... Bd4+ {[%clk 0:40:22]} 35. Kd3 {[%clk 0:24:09]} 35...
c5 {[%clk 0:40:11]} 36. g4 {[%clk 0:24:00]} 36... Kc6 {[%clk 0:39:25]} 37. Kc4
{[%clk 0:24:12]} 37... Kd7 1/2-1/2

[Variant "Standard"]
[Site "Europe Echecs"]

[Event "Championnat du monde jeunes U10"]
[Date "2024.11.26"]
[White "Kaloh, Edvard"]
[Black "Sahin, Yusuf Kerem"]
[WhiteElo "1506"]
[BlackElo "1720"]
[Round "11.46"]
[Result "0-1"]
[TimeControl "5400+30"]

1. e4 {[%clk 1:27:10]} 1... c5 {[%clk 1:30:39]} 2. Nc3 {[%clk 1:27:31]} 2... g6
{[%clk 1:30:51]} 3. g3 {[%clk 1:27:55]} 3... Bg7 {[%clk 1:31:08]} 4. Bg2 {[%clk
1:28:19]} 4... Nc6 {[%clk 1:30:57]} 5. f4 {[%clk 1:28:37]} 5... e6 {[%clk
1:30:49]} 6. Nf3 {[%clk 1:28:54]} 6... Nge7 {[%clk 1:30:37]} 7. O-O {[%clk
1:29:14]} 7... O-O {[%clk 1:30:33]} 8. d3 {[%clk 1:29:35]} 8... d6 {[%clk
1:30:20]} 9. Be3 {[%clk 1:29:06]} 9... Rb8 {[%clk 1:29:20]} 10. Rb1 {[%clk
1:28:56]} 10... b5 {[%clk 1:27:38]} 11. d4 {[%clk 1:28:41]} 11... d5 {[%clk
1:25:54]} 12. e5 {[%clk 1:25:56]} 12... Nf5 {[%clk 1:26:10]} 13. Bf2 {[%clk
1:26:14]} 13... cxd4 {[%clk 1:25:57]} 14. Nxd4 {[%clk 1:26:16]} 14... Nfxd4
{[%clk 1:25:30]} 15. Bxd4 {[%clk 1:26:31]} 15... Nxd4 {[%clk 1:25:52]} 16. Qxd4
{[%clk 1:26:22]} 16... b4 {[%clk 1:24:19]} 17. Na4 {[%clk 1:21:14]} 17... Ba6
{[%clk 1:11:06]} 18. Rfe1 {[%clk 1:20:42]} 18... Qa5 19. Nc5 {[%clk 1:20:36]}
19... Bb5 {[%clk 1:03:58]} 20. Nb3 {[%clk 1:19:26]} 20... Qc7 {[%clk 1:03:20]}
21. Rbc1 {[%clk 1:18:22]} 21... Bc4 {[%clk 0:59:43]} 22. Bf1 {[%clk 1:17:49]}
22... Rfd8 {[%clk 0:57:05]} 23. Nd2 {[%clk 1:16:26]} 23... Bf8 {[%clk 0:56:50]}
24. Kh1 {[%clk 1:15:10]} 24... Bc5 {[%clk 0:57:07]} 25. Nb3 {[%clk 1:14:05]}
25... Bxd4 {[%clk 0:56:56]} 0-1

[Variant "Standard"]
[Site "Europe Echecs"]

[Event "Championnat du monde jeunes U10"]
[Date "2024.11.26"]
[White "Mariani, Kim Paul"]
[Black "Popov, Aleksandr And"]
[WhiteElo "1814"]
[BlackElo "1651"]
[Round "11.47"]
[Result "1-0"]
[TimeControl "5400+30"]

1. e4 {[%clk 1:30:30]} 1... e5 {[%clk 1:30:58]} 2. Nf3 {[%clk 1:30:38]} 2... Nc6
{[%clk 1:31:25]} 3. Bc4 {[%clk 1:30:50]} 3... Bc5 {[%clk 1:31:52]} 4. c3 {[%clk
1:30:39]} 4... Nf6 {[%clk 1:32:17]} 5. d3 {[%clk 1:30:30]} 5... a5 {[%clk
1:30:32]} 6. Bb3 {[%clk 1:27:00]} 6... d6 {[%clk 1:27:48]} 7. Nbd2 {[%clk
1:25:15]} 7... O-O {[%clk 1:25:44]} 8. Nf1 {[%clk 1:25:02]} 8... h6 {[%clk
1:21:12]} 9. h3 {[%clk 1:24:29]} 9... Be6 {[%clk 1:18:56]} 10. Bc2 {[%clk
1:23:53]} 10... Ba7 {[%clk 1:17:05]} 11. Ng3 {[%clk 1:23:15]} 11... Ne7 {[%clk
1:11:24]} 12. d4 {[%clk 1:06:29]} 12... Ng6 {[%clk 1:05:17]} 13. Be3 {[%clk
1:01:24]} 13... Bc4 {[%clk 1:02:40]} 14. b3 {[%clk 0:55:05]} 14... Ba6 {[%clk
1:02:12]} 15. Qd2 {[%clk 0:55:19]} 15... Kh7 {[%clk 0:58:12]} 16. Nf5 {[%clk
0:51:42]} 16... Ng8 {[%clk 0:55:40]} 17. h4 {[%clk 0:47:04]} 17... exd4 {[%clk
0:54:55]} 18. cxd4 {[%clk 0:47:15]} 18... N6e7 {[%clk 0:54:16]} 19. g4 {[%clk
0:45:55]} 19... c5 {[%clk 0:52:18]} 20. d5 {[%clk 0:45:28]} 20... Nxf5 {[%clk
0:51:19]} 21. exf5 {[%clk 0:45:25]} 21... f6 {[%clk 0:48:28]} 22. g5 {[%clk
0:42:38]} 22... c4 {[%clk 0:46:54]} 23. Bxa7 {[%clk 0:42:11]} 23... Rxa7 {[%clk
0:47:16]} 24. O-O-O {[%clk 0:41:29]} 24... cxb3 {[%clk 0:46:23]} 25. axb3 {[%clk
0:41:32]} 25... Re8 {[%clk 0:40:17]} 26. gxh6 {[%clk 0:41:05]} 26... Re2 {[%clk
0:38:55]} 27. Qf4 {[%clk 0:40:32]} 27... Nxh6 {[%clk 0:37:34]} 28. Nd4 {[%clk
0:40:16]} 28... Re7 {[%clk 0:34:52]} 29. Ne6 {[%clk 0:39:51]} 29... Qb8 {[%clk
0:33:58]} 30. Rhg1 {[%clk 0:38:55]} 30... Be2 {[%clk 0:30:18]} 31. Rde1 {[%clk
0:38:19]} 31... Bh5 {[%clk 0:29:19]} 32. Ng5+ {[%clk 0:11:29]} 32... fxg5 {[%clk
0:28:20]} 33. f6+ {[%clk 0:11:34]} 33... Kg8 {[%clk 0:16:33]} 34. Bh7+ {[%clk
0:11:04]} 34... Kh8 {[%clk 0:15:39]} 35. Rxe7 {[%clk 0:09:54]} 35... g6 {[%clk
0:13:37]} 36. Qd4 {[%clk 0:09:39]} 36... Nf7 {[%clk 0:13:13]} 37. Rxf7 {[%clk
0:09:23]} 37... Qc8+ {[%clk 0:13:23]} 38. Kb2 {[%clk 0:09:49]} 38... Ra8 {[%clk
0:13:26]} 39. Re7 {[%clk 0:09:29]} 39... Qc2+ {[%clk 0:13:44]} 40. Kxc2 {[%clk
0:09:54]} 40... Rc8+ {[%clk 0:14:10]} 41. Kb2 {[%clk 0:10:21]} 41... Rc2+ {[%clk
0:14:33]} 42. Kxc2 {[%clk 0:10:50]} 42... Bd1+ 43. Kxd1 {[%clk 0:11:11]} 43...
a4 {[%clk 0:15:14]} 44. f7+ {[%clk 0:11:36]} 44... Kxh7 {[%clk 0:15:36]} 45.
f8=Q# {[%clk 0:12:01]} 1-0

[Variant "Standard"]
[Site "Europe Echecs"]

[Event "Championnat du monde jeunes U10"]
[Date "2024.11.26"]
[White "Yao, Lucas Mason Pin Qian"]
[Black "Zilincan, Tomas"]
[WhiteElo "1687"]
[BlackElo "1778"]
[Round "11.48"]
[Result "1-0"]
[TimeControl "5400+30"]

1. e4 {[%clk 1:30:57]} 1... e6 {[%clk 1:30:57]} 2. d4 {[%clk 1:31:18]} 2... d5
{[%clk 1:31:25]} 3. exd5 {[%clk 1:31:37]} 3... exd5 {[%clk 1:31:48]} 4. Bf4
{[%clk 1:31:58]} 4... Bd6 {[%clk 1:32:08]} 5. Qd2 {[%clk 1:32:12]} 5... Ne7
{[%clk 1:32:25]} 6. Nc3 {[%clk 1:31:40]} 6... c6 {[%clk 1:32:46]} 7. O-O-O
{[%clk 1:29:17]} 7... b5 {[%clk 1:31:54]} 8. Bd3 {[%clk 1:27:55]} 8... a5 {[%clk
1:31:21]} 9. Nge2 {[%clk 1:26:03]} 9... a4 {[%clk 1:30:33]} 10. f3 {[%clk
1:25:19]} 10... Qc7 {[%clk 1:15:07]} 11. Rhe1 {[%clk 1:21:40]} 11... Nd7 {[%clk
1:13:42]} 12. Bg5 {[%clk 1:14:34]} 12... f6 {[%clk 1:13:59]} 13. Bf4 {[%clk
1:13:24]} 13... Nb6 {[%clk 1:13:56]} 14. Bxd6 {[%clk 1:12:59]} 14... Qxd6 {[%clk
1:13:13]} 15. Qf4 {[%clk 1:13:12]} 15... Qb4 {[%clk 1:08:23]} 16. a3 {[%clk
1:12:49]} 16... Qa5 {[%clk 1:08:15]} 17. Qd6 {[%clk 1:12:53]} 17... Bd7 {[%clk
1:04:38]} 18. Nf4 {[%clk 1:10:41]} 18... Nc8 {[%clk 1:04:54]} 19. Rxe7+ {[%clk
1:01:22]} 19... Nxe7 {[%clk 1:05:12]} 20. Re1 {[%clk 1:01:24]} 20... O-O {[%clk
0:59:47]} 21. Rxe7 {[%clk 1:01:07]} 21... Be8 {[%clk 0:57:52]} 22. Qe6+ {[%clk
1:00:54]} 22... Kh8 {[%clk 0:57:51]} 23. Qf5 {[%clk 1:01:16]} 23... g6 {[%clk
0:57:30]} 24. Qh3 {[%clk 1:01:15]} 24... Qd8 {[%clk 0:57:09]} 25. Qxh7# {[%clk
1:01:36]} 1-0

[Variant "Standard"]
[Site "Europe Echecs"]

[Event "Championnat du monde jeunes U10"]
[Date "2024.11.26"]
[White "Zhou, Martin"]
[Black "Bartash, Saveli"]
[WhiteElo "1776"]
[BlackElo "1661"]
[Round "11.1"]
[Result "1-0"]
[TimeControl "5400+30"]

1. e4 {[%clk 1:30:53]} 1... c5 {[%clk 1:30:43]} 2. Nc3 {[%clk 1:31:19]} 2... Nc6
{[%clk 1:31:03]} 3. g3 {[%clk 1:31:46]} 3... g6 {[%clk 1:30:59]} 4. Bg2 {[%clk
1:32:07]} 4... Bg7 {[%clk 1:30:56]} 5. f4 {[%clk 1:31:04]} 5... d6 {[%clk
1:30:04]} 6. Nf3 {[%clk 1:31:27]} 6... e6 {[%clk 1:28:04]} 7. O-O {[%clk
1:29:19]} 7... Nge7 {[%clk 1:26:39]} 8. d3 {[%clk 1:29:22]} 8... O-O {[%clk
1:25:40]} 9. Be3 {[%clk 1:27:44]} 9... Nd4 {[%clk 1:22:37]} 10. Qd2 {[%clk
1:18:26]} 10... Nec6 {[%clk 1:20:54]} 11. Rae1 {[%clk 1:16:38]} 11... Rb8 {[%clk
1:17:30]} 12. Nd1 {[%clk 1:16:34]} 12... b5 {[%clk 1:13:48]} 13. c3 {[%clk
1:16:05]} 13... Nxf3+ {[%clk 1:13:32]} 14. Bxf3 {[%clk 1:15:28]} 14... Bb7
{[%clk 1:08:13]} 15. f5 {[%clk 1:10:57]} 15... Ne5 {[%clk 1:00:45]} 16. Be2
{[%clk 1:05:47]} 16... exf5 {[%clk 0:58:23]} 17. exf5 {[%clk 1:06:07]} 17... Qd7
{[%clk 0:56:23]} 18. d4 {[%clk 1:03:01]} 18... Qc6 {[%clk 0:55:16]} 19. d5
{[%clk 1:00:30]} 19... Qxd5 {[%clk 0:55:27]} 20. Qxd5 {[%clk 1:00:41]} 20...
Bxd5 {[%clk 0:55:47]} 21. f6 {[%clk 1:01:02]} 21... Bh8 {[%clk 0:55:53]} 22. a3
{[%clk 0:59:08]} 22... Rfe8 {[%clk 0:51:23]} 23. g4 {[%clk 0:57:02]} 23... Re6
{[%clk 0:49:34]} 24. g5 {[%clk 0:56:47]} 24... c4 {[%clk 0:46:46]} 25. Bxa7
{[%clk 0:44:15]} 25... Rbe8 {[%clk 0:46:55]} 26. Ne3 {[%clk 0:43:24]} 26... Bb7
{[%clk 0:46:47]} 27. Kf2 {[%clk 0:40:25]} 27... h6 {[%clk 0:43:32]} 28. h4
{[%clk 0:40:44]} 28... Nc6 {[%clk 0:43:25]} 29. Bb6 {[%clk 0:39:30]} 29... hxg5
{[%clk 0:36:24]} 30. hxg5 {[%clk 0:39:51]} 30... Re5 {[%clk 0:36:41]} 31. Rg1
{[%clk 0:37:39]} 31... Nd8 {[%clk 0:31:49]} 32. Bxd8 {[%clk 0:16:40]} 32... Rxd8
{[%clk 0:31:34]} 33. Ng4 {[%clk 0:12:14]} 33... Rf5+ {[%clk 0:29:50]} 34. Ke3
{[%clk 0:12:31]} 34... Rd5 {[%clk 0:27:42]} 35. Nh6+ {[%clk 0:11:27]} 35... Kf8
{[%clk 0:27:57]} 36. Rd1 {[%clk 0:10:53]} 36... Re8+ {[%clk 0:27:35]} 37. Kf2
{[%clk 0:09:44]} 37... Rde5 {[%clk 0:27:37]} 38. Rde1 {[%clk 0:08:45]} 38... Rd5
{[%clk 0:26:59]} 39. Bf3 {[%clk 0:07:02]} 39... Rd2+ {[%clk 0:26:28]} 40. Kg3
{[%clk 0:06:45]} 40... Rxe1 {[%clk 0:22:38]} 41. Rxe1 {[%clk 0:07:05]} 41...
Bxf3 {[%clk 0:22:17]} 42. Kxf3 {[%clk 0:07:27]} 42... Rxb2 {[%clk 0:22:27]} 43.
Re7 {[%clk 0:07:46]} 43... Rb3 {[%clk 0:22:11]} 44. Rxf7+ {[%clk 0:08:10]} 44...
Ke8 {[%clk 0:22:37]} 45. Rh7 {[%clk 0:07:53]} 45... Rxc3+ {[%clk 0:22:55]} 46.
Ke4 {[%clk 0:08:14]} 46... d5+ {[%clk 0:22:55]} 47. Kxd5 {[%clk 0:08:29]} 47...
Bxf6 {[%clk 0:23:13]} 48. gxf6 {[%clk 0:08:48]} 48... Rf3 {[%clk 0:23:31]} 49.
Ke6 {[%clk 0:08:47]} 49... Re3+ {[%clk 0:23:51]} 50. Kd6 {[%clk 0:09:06]} 50...
Rd3+ {[%clk 0:23:59]} 51. Kc6 {[%clk 0:09:30]} 51... c3 {[%clk 0:24:04]} 52.
Rh8# {[%clk 0:09:55]} 1-0

[Variant "Standard"]
[Site "Europe Echecs"]

[Event "Championnat du monde jeunes U10"]
[Date "2024.11.26"]
[White "Montaigu Dupont, Arthur"]
[Black "Mitrovic, Vasilije"]
[WhiteElo "1767"]
[BlackElo "1590"]
[Round "11.2"]
[Result "1-0"]
[TimeControl "5400+30"]

1. e4 {[%clk 1:30:58]} 1... e5 {[%clk 1:30:27]} 2. Nf3 {[%clk 1:31:24]} 2... Nc6
{[%clk 1:28:38]} 3. Bc4 {[%clk 1:31:49]} 3... Bc5 {[%clk 1:28:35]} 4. d3 {[%clk
1:32:14]} 4... Nf6 {[%clk 1:15:53]} 5. Nc3 {[%clk 1:31:38]} 5... h6 {[%clk
1:07:56]} 6. O-O {[%clk 1:31:51]} 6... O-O {[%clk 1:01:09]} 7. h3 {[%clk
1:28:38]} 7... d6 {[%clk 0:58:38]} 8. Na4 {[%clk 1:29:00]} 8... Bb6 {[%clk
0:55:45]} 9. a3 {[%clk 1:29:25]} 9... Bd7 {[%clk 0:49:21]} 10. b4 {[%clk
1:28:13]} 10... Ne7 {[%clk 0:37:11]} 11. Nxb6 {[%clk 1:28:16]} 11... axb6 {[%clk
0:36:08]} 12. c3 {[%clk 1:25:46]} 12... Ng6 {[%clk 0:30:36]} 13. Re1 {[%clk
1:26:10]} 13... Re8 {[%clk 0:22:50]} 14. Qc2 {[%clk 1:21:01]} 14... Qe7 {[%clk
0:20:11]} 15. Bb3 {[%clk 1:19:04]} 15... Be6 {[%clk 0:19:27]} 16. c4 {[%clk
1:17:50]} 16... c5 {[%clk 0:17:04]} 17. Bd2 {[%clk 1:16:18]} 17... cxb4 {[%clk
0:14:40]} 18. axb4 Rec8 {[%clk 0:11:51]} 19. Rxa8 {[%clk 1:08:59]} 19... Rxa8
{[%clk 0:12:10]} 20. d4 {[%clk 1:09:17]} 20... exd4 {[%clk 0:11:22]} 21. Nxd4
{[%clk 1:08:29]} 21... Bd7 {[%clk 0:10:07]} 22. f4 {[%clk 1:01:44]} 22... Re8
{[%clk 0:07:54]} 23. Nf5 {[%clk 1:00:25]} 23... Qf8 {[%clk 0:07:23]} 24. Ng3
{[%clk 0:59:50]} 24... Re7 {[%clk 0:06:26]} 25. Qd3 {[%clk 0:59:22]} 25... Qb8
{[%clk 0:04:39]} 26. c5 {[%clk 0:58:51]} 26... bxc5 {[%clk 0:04:17]} 27. bxc5
{[%clk 0:59:10]} 27... dxc5 {[%clk 0:04:13]} 28. e5 {[%clk 0:59:09]} 28... Nh7
{[%clk 0:03:48]} 29. Qxg6 {[%clk 0:57:56]} 29... Ba4 {[%clk 0:02:46]} 30. Nf5
{[%clk 0:55:10]} 30... Qf8 {[%clk 0:02:18]} 31. Nxe7+ {[%clk 0:55:08]} 31...
Qxe7 {[%clk 0:02:30]} 32. Qb6 {[%clk 0:54:08]} 32... Bc6 {[%clk 0:02:32]} 33. e6
{[%clk 0:53:37]} 33... f6 {[%clk 0:02:42]} 34. Be3 {[%clk 0:53:42]} 34... Kh8
{[%clk 0:02:41]} 35. Bxc5 {[%clk 0:54:05]} 35... Qe8 {[%clk 0:02:16]} 36. e7
{[%clk 0:54:17]} 36... Qg6 {[%clk 0:01:50]} 37. Qxc6 {[%clk 0:54:41]} 37... bxc6
38. e8=Q+ {[%clk 0:55:03]} 38... Qxe8 {[%clk 0:02:04]} 39. Rxe8+ {[%clk
0:55:29]} 39... Nf8 {[%clk 0:02:20]} 40. Rxf8+ {[%clk 0:55:49]} 40... Kh7 {[%clk
0:02:41]} 41. f5 {[%clk 0:56:02]} 41... h5 {[%clk 0:02:40]} 42. Bf7 {[%clk
0:56:23]} 42... h4 {[%clk 0:02:29]} 43. Bg6+ {[%clk 0:56:48]} 43... Kh6 {[%clk
0:02:39]} 44. Be3# {[%clk 0:57:12]} 1-0

[Variant "Standard"]
[Site "Europe Echecs"]

[Event "Championnat du monde jeunes U10"]
[Date "2024.11.26"]
[White "Fattori Dittmar, Luca"]
[Black "Yrysov, Timur"]
[WhiteElo "1766"]
[BlackElo "1604"]
[Round "11.3"]
[Result "0-1"]
[TimeControl "5400+30"]

1. e4 {[%clk 1:30:57]} 1... Nc6 {[%clk 1:30:46]} 2. Nf3 {[%clk 1:31:12]} 2... d6
{[%clk 1:30:44]} 3. d4 {[%clk 1:30:45]} 3... Nf6 {[%clk 1:30:55]} 4. Nc3 {[%clk
1:31:10]} 4... g6 {[%clk 1:30:33]} 5. Be3 {[%clk 1:31:03]} 5... Bg7 {[%clk
1:30:30]} 6. Qd2 {[%clk 1:31:10]} 6... a6 {[%clk 1:30:22]} 7. O-O-O {[%clk
1:30:17]} 7... b5 8. Bd3 {[%clk 1:28:26]} 8... Bb7 {[%clk 1:28:22]} 9. d5 {[%clk
1:27:47]} 9... Na5 {[%clk 1:23:00]} 10. Bh6 {[%clk 1:22:10]} 10... Bxh6 {[%clk
1:22:01]} 11. Qxh6 {[%clk 1:21:47]} 11... b4 {[%clk 1:08:58]} 12. Ne2 {[%clk
1:20:30]} 12... Qd7 {[%clk 1:06:46]} 13. Qd2 {[%clk 1:16:03]} 13... Qa4 {[%clk
1:02:15]} 14. Kb1 {[%clk 1:15:12]} 14... O-O-O {[%clk 0:58:41]} 15. b3 {[%clk
1:13:32]} 15... Qa3 {[%clk 0:58:11]} 16. Qe1 {[%clk 1:10:04]} 16... h6 {[%clk
0:51:54]} 17. Nd2 {[%clk 1:07:32]} 17... Nd7 {[%clk 0:45:31]} 18. Ka1 {[%clk
1:06:37]} 18... Nc5 {[%clk 0:45:02]} 19. Nc1 {[%clk 1:06:19]} 19... Naxb3+
{[%clk 0:33:57]} 20. Ndxb3 {[%clk 1:05:15]} 20... Na4 {[%clk 0:33:43]} 21. Bxa6
{[%clk 0:59:16]} 21... Qb2# {[%clk 0:34:04]} 0-1

[Variant "Standard"]
[Site "Europe Echecs"]

[Event "Championnat du monde jeunes U10"]
[Date "2024.11.26"]
[White "Larionov, Serghei"]
[Black "Wu, Chenyu"]
[WhiteElo "1720"]
[BlackElo "1503"]
[Round "11.4"]
[Result "1/2-1/2"]
[TimeControl "5400+30"]

1. d4 {[%clk 1:30:56]} 1... d5 {[%clk 1:30:31]} 2. c4 {[%clk 1:31:18]} 2... e6
{[%clk 1:30:58]} 3. Nc3 {[%clk 1:31:34]} 3... Nf6 {[%clk 1:31:23]} 4. cxd5
{[%clk 1:31:56]} 4... exd5 {[%clk 1:31:49]} 5. Bg5 {[%clk 1:32:08]} 5... Be7
{[%clk 1:32:11]} 6. e3 {[%clk 1:32:22]} 6... h6 {[%clk 1:32:31]} 7. Bh4 {[%clk
1:32:39]} 7... O-O {[%clk 1:32:54]} 8. Bd3 {[%clk 1:31:10]} 8... c6 {[%clk
1:33:13]} 9. Nf3 {[%clk 1:28:41]} 9... Ne4 {[%clk 1:32:09]} 10. Bxe7 {[%clk
1:21:56]} 10... Qxe7 {[%clk 1:31:37]} 11. O-O {[%clk 1:17:13]} 11... Nd7 {[%clk
1:23:25]} 12. Bxe4 {[%clk 1:10:46]} 12... dxe4 {[%clk 1:22:49]} 13. Nd2 {[%clk
1:11:10]} 13... f5 {[%clk 1:22:57]} 14. Qb3+ {[%clk 1:02:42]} 14... Kh7 {[%clk
1:22:47]} 15. Qc2 {[%clk 0:58:25]} 15... Nf6 {[%clk 1:20:52]} 16. Nc4 {[%clk
0:58:11]} 16... Be6 {[%clk 1:15:15]} 17. Ne5 {[%clk 0:58:10]} 17... c5 {[%clk
1:14:23]} 18. Rad1 {[%clk 0:44:57]} 18... cxd4 {[%clk 1:13:50]} 19. exd4 {[%clk
0:43:32]} 19... Rac8 {[%clk 1:09:28]} 20. Qe2 {[%clk 0:37:16]} 20... Rfd8 {[%clk
1:07:40]} 21. Qe3 {[%clk 0:37:09]} 21... Qb4 {[%clk 1:02:37]} 22. Rd2 {[%clk
0:35:59]} 22... Rd6 {[%clk 0:49:50]} 23. Rfd1 {[%clk 0:32:52]} 23... Rcd8 {[%clk
0:47:51]} 24. h4 {[%clk 0:29:05]} 24... Qa5 {[%clk 0:45:48]} 25. Qg3 {[%clk
0:25:43]} 25... Kg8 {[%clk 0:36:38]} 26. Qg6 {[%clk 0:16:38]} 26... Qb6 {[%clk
0:35:31]} 27. d5 {[%clk 0:16:07]} 27... Nxd5 {[%clk 0:35:19]} 28. Nxd5 {[%clk
0:16:14]} 28... Rxd5 {[%clk 0:34:11]} 29. Rxd5 {[%clk 0:15:52]} 29... Rxd5
{[%clk 0:32:08]} 30. Qe8+ {[%clk 0:14:39]} 30... Kh7 {[%clk 0:32:27]} 31. Qg6+
{[%clk 0:11:33]} 31... Kg8 {[%clk 0:32:48]} 32. Qe8+ {[%clk 0:11:48]} 32... Kh7
{[%clk 0:33:14]} 33. Qg6+ {[%clk 0:12:12]} 33... Kg8 {[%clk 0:33:39]} 34. Qe8+
{[%clk 0:12:36]} 1/2-1/2

[Variant "Standard"]
[Site "Europe Echecs"]

[Event "Championnat du monde jeunes U10"]
[Date "2024.11.26"]
[White "Iliev, Stoyan"]
[Black "Ostapenko, Volodymyr"]
[WhiteElo "1671"]
[BlackElo "1720"]
[Round "11.5"]
[Result "1/2-1/2"]
[TimeControl "5400+30"]

1. e4 {[%clk 1:30:57]} 1... e5 {[%clk 1:30:58]} 2. Nf3 {[%clk 1:31:13]} 2... Nc6
{[%clk 1:31:26]} 3. Bb5 {[%clk 1:31:33]} 3... a6 4. Ba4 {[%clk 1:31:45]} 4...
Nf6 {[%clk 1:32:02]} 5. d3 {[%clk 1:32:07]} 5... b5 {[%clk 1:32:29]} 6. Bb3
{[%clk 1:32:23]} 6... d6 {[%clk 1:31:52]} 7. Ng5 {[%clk 1:31:42]} 7... d5 {[%clk
1:31:11]} 8. exd5 Nd4 {[%clk 1:28:47]} 9. c4 {[%clk 1:29:11]} 9... Bb4+ {[%clk
1:28:17]} 10. Bd2 {[%clk 1:29:03]} 10... Bxd2+ {[%clk 1:28:27]} 11. Nxd2 {[%clk
1:29:26]} 11... O-O {[%clk 1:24:53]} 12. Nge4 {[%clk 1:28:21]} 12... Bf5 {[%clk
1:24:12]} 13. Bc2 {[%clk 1:17:02]} 13... Rb8 {[%clk 1:21:58]} 14. b3 {[%clk
1:16:13]} 14... b4 {[%clk 1:21:46]} 15. O-O {[%clk 1:15:41]} 15... Rb6 {[%clk
1:21:08]} 16. h3 {[%clk 1:11:10]} 16... Qc8 {[%clk 1:19:26]} 17. Kh2 {[%clk
1:11:01]} 17... Nxe4 {[%clk 1:11:56]} 18. dxe4 {[%clk 1:10:43]} 18... Bxh3
{[%clk 1:11:35]} 19. Rh1 {[%clk 1:04:52]} 19... Rh6 {[%clk 1:10:25]} 20. Kg1
{[%clk 1:05:02]} 20... Rg6 {[%clk 1:10:19]} 21. Rh2 {[%clk 1:03:49]} 21... Bg4
{[%clk 1:05:58]} 22. f3 {[%clk 1:03:34]} 22... Bd7 {[%clk 1:05:26]} 23. Bd3
{[%clk 1:03:35]} 23... Qd8 {[%clk 1:05:26]} 24. Rh5 {[%clk 1:03:09]} 24... Qf6
{[%clk 1:04:57]} 25. Kh1 {[%clk 0:57:58]} 25... Rh6 {[%clk 1:03:30]} 26. Rxh6
{[%clk 0:58:15]} 26... Qxh6+ {[%clk 1:03:55]} 27. Kg1 {[%clk 0:58:41]} 27...
Qe3+ {[%clk 1:04:20]} 28. Kh1 {[%clk 0:58:31]} 28... Qxd3 {[%clk 1:04:43]} 29.
Nf1 {[%clk 0:57:48]} 29... Qxd1 {[%clk 1:04:31]} 30. Rxd1 {[%clk 0:58:16]} 30...
Rb8 {[%clk 1:04:34]} 31. f4 {[%clk 0:58:36]} 31... f6 {[%clk 1:04:15]} 32. Rd2
{[%clk 0:58:34]} 32... Bg4 {[%clk 1:03:40]} 33. Ne3 {[%clk 0:58:44]} 33... Bd7
{[%clk 1:03:24]} 34. f5 {[%clk 0:58:55]} 34... Be8 {[%clk 1:03:29]} 35. Kg1
{[%clk 0:58:38]} 35... Bh5 {[%clk 1:03:53]} 36. Kf2 {[%clk 0:59:02]} 36... a5
{[%clk 1:02:53]} 37. Rb2 {[%clk 0:58:13]} 37... Be2 {[%clk 1:02:33]} 38. Rxe2
{[%clk 0:57:55]} 38... Nxe2 {[%clk 1:02:56]} 39. Kxe2 {[%clk 0:58:22]} 39... a4
{[%clk 1:03:03]} 40. Nc2 {[%clk 0:58:37]} 40... Kf8 {[%clk 1:03:13]} 41. Kd3
{[%clk 0:58:49]} 41... axb3 {[%clk 1:02:51]} 42. axb3 {[%clk 0:59:14]} 42... Ra8
{[%clk 1:00:49]} 43. Nxb4 {[%clk 0:59:17]} 43... Ra1 {[%clk 1:01:00]} 44. c5
{[%clk 0:59:35]} 44... g6 {[%clk 1:00:28]} 1/2-1/2

[Variant "Standard"]
[Site "Europe Echecs"]